bitfinex/quotes_BTCUSD_20250204
["timestamp","ask_amount","ask_price","bid_price","bid_amount"]
[1738699758696,0.0102245,98599.0,98569.0,0.10238506]
[1738699759069,0.0102245,98599.0,98598.0,0.152132]
[1738699759189,0.0202245,98599.0,98598.0,0.152132]
[1738699759391,0.0102245,98599.0,98598.0,0.152132]
[1738699759592,0.0102245,98599.0,98598.0,0.25451706]
[1738699763462,0.0102245,98599.0,98591.0,0.040572]
[1738699763636,0.0102245,98599.0,98560.0,0.31523914]
[1738699763637,0.0102245,98599.0,98598.0,0.152132]
[1738699763836,0.0102245,98599.0,98598.0,0.25451706]
[1738699765078,0.0102245,98599.0,98598.0,0.40451706]
[1738699765390,0.0738492,98624.0,98623.0,0.152094]
[1738699765521,0.01,98621.0,98598.0,0.0099379]
[1738699765740,0.01,98612.0,98584.0,0.05036402]
[1738699765951,0.01,98612.0,98610.0,0.152113]
[1738699766162,0.01,98621.0,98619.0,0.152099]
[1738699766402,0.01,98621.0,98617.0,0.152103]
[1738699766604,0.01,98621.0,98598.0,0.10238506]
[1738699766778,0.01,98640.0,98623.0,0.152094]
[1738699766980,0.08078646,98673.0,98631.0,0.152082]
[1738699767165,0.0464,98653.0,98634.0,0.202768]
[1738699767370,0.01,98633.0,98614.0,0.152108]
[1738699767572,0.01,98629.0,98584.0,0.040575]
[1738699767774,0.01,98626.0,98598.0,0.15]
[1738699768010,0.01,98621.0,98599.0,0.10238506]
[1738699768214,0.1238,98620.0,98599.0,0.10238506]
[1738699768470,0.01,98614.0,98599.0,0.10238506]
[1738699768666,0.01,98603.0,98584.0,0.040575]
[1738699769003,0.01,98603.0,98585.0,0.10238506]
[1738699769202,0.01,98600.0,98579.0,0.040576]
[1738699769403,0.01,98596.0,98580.0,0.10238506]
[1738699770037,0.01,98596.0,98587.0,0.202865]
[1738699770240,0.01,98596.0,98587.0,0.152149]
[1738699770439,0.01,98595.0,98581.0,0.202878]
[1738699770665,0.01,98593.0,98582.0,0.202876]
[1738699770867,0.01,98593.0,98580.0,0.10238506]
[1738699771019,0.1359,98574.0,98573.0,0.0406849]
[1738699771619,1.73980677,98574.0,98573.0,0.0406849]
[1738699771817,0.01,98548.0,98540.0,0.202962]
[1738699772038,0.01,98548.0,98532.0,0.15]
[1738699772254,0.01,98547.0,98520.0,0.31523914]
[1738699772458,0.0462,98535.0,98520.0,0.10238506]
[1738699772660,0.0562,98535.0,98520.0,0.10238506]
[1738699772871,0.0562,98535.0,98500.0,0.31523914]
[1738699772872,0.01,98518.0,98506.0,0.152273]
[1738699773071,0.01,98518.0,98459.0,0.0095]
[1738699773072,0.01,98510.0,98493.0,0.12139546]
[1738699773276,0.10390151,98534.0,98440.0,0.0095]
[1738699773277,0.01,98504.0,98460.0,0.31523914]
[1738699773492,0.01,98504.0,98487.0,0.20307]
[1738699773719,0.01,98504.0,98491.0,0.203062]
[1738699773938,0.01,98504.0,98480.0,0.31523914]
[1738699773939,0.01,98504.0,98493.0,0.152295]
[1738699774088,0.01,98504.0,98480.0,0.31523914]
[1738699774443,0.01,98492.0,98491.0,0.152297]
[1738699775136,0.01,98504.0,98503.0,0.152279]
[1738699775771,0.01,98492.0,98474.0,0.0001068]
[1738699775976,0.01,98496.0,98481.0,0.08078646]
[1738699776112,0.0462,98505.0,98482.0,0.10238506]
[1738699776319,0.0462,98505.0,98483.0,0.15]
[1738699776542,0.0462,98505.0,98485.0,0.15]
[1738699776543,0.01,98502.0,98485.0,0.15]
[1738699776833,0.01,98500.0,98499.0,0.152285]
[1738699777059,0.01,98500.0,98486.0,0.10238506]
[1738699777432,0.01,98504.0,98503.0,0.152279]
[1738699777580,0.01,98500.0,98481.0,0.15]
[1738699777787,0.01,98500.0,98499.0,0.152285]
[1738699778472,0.01,98500.0,98483.0,0.15]
[1738699778654,0.01,98519.0,98485.0,0.15]
[1738699778852,0.01,98513.0,98486.0,0.10238506]
[1738699779098,0.0784,98525.0,98524.0,0.152247]
[1738699779302,0.0884,98525.0,98524.0,0.152247]
[1738699779883,0.0784,98525.0,98524.0,0.152247]
[1738699780549,0.0462,98530.0,98487.0,0.01]
[1738699780683,0.078,98541.0,98524.0,0.10238506]
[1738699780918,0.078,98541.0,98502.0,0.304562]
[1738699780919,0.0485,98553.0,98548.0,0.152208]
[1738699781141,0.08078646,98569.0,98561.0,0.152189]
[1738699781142,0.01,98564.0,98561.0,0.152189]
[1738699781337,0.01,98587.0,98569.0,0.202903]
[1738699781565,0.078,98589.0,98588.0,0.152148]
[1738699781760,0.0585,98616.0,98598.0,0.152132]
[1738699781958,0.01,98626.0,98598.0,0.302132]
[1738699782183,0.01,98650.0,98599.0,0.15]
[1738699782382,0.078,98663.0,98631.0,0.15]
[1738699782586,5.6e-07,98655.0,98653.0,0.152048]
[1738699782785,0.078,98697.0,98691.0,0.151989]
[1738699783257,0.97185115,98700.0,98691.0,0.301989]
[1738699783258,0.96185115,98700.0,98691.0,0.301989]
[1738699783469,0.96185115,98700.0,98691.0,0.33307439]
[1738699783879,0.95879674,98700.0,98691.0,0.10238506]
[1738699784084,0.95879674,98700.0,98698.0,0.151977]
[1738699784746,0.01,98693.0,98691.0,0.151988]
[1738699784948,0.95879674,98700.0,98698.0,0.151978]
[1738699785362,0.95879674,98700.0,98699.0,0.15]
[1738699785565,0.95879674,98700.0,98699.0,0.25238506]
[1738699785977,0.51935422,98700.0,98699.0,0.25238506]
[1738699786386,0.51374648,98700.0,98699.0,0.25238506]
[1738699786581,0.01004139,98734.0,98729.0,0.151931]
[1738699786582,4.139e-05,98734.0,98729.0,0.151931]
[1738699786788,4.139e-05,98734.0,98729.0,0.25431606]
[1738699786997,0.00022408,98793.0,98743.0,0.15]
[1738699787170,0.00022408,98793.0,98720.0,0.31523914]
[1738699787171,0.01,98770.0,98752.0,0.301895]
[1738699787400,0.01,98770.0,98752.0,0.40428006]
[1738699787804,0.00022408,98793.0,98752.0,0.40428006]
[1738699788005,0.01,98766.0,98752.0,0.40428006]
[1738699788259,0.00022408,98793.0,98752.0,0.40428006]
[1738699788461,0.02666667,98776.0,98752.0,0.40428006]
[1738699788642,0.01666667,98776.0,98752.0,0.40428006]
[1738699789315,0.01666667,98776.0,98771.0,0.151866]
[1738699789485,0.01666667,98776.0,98771.0,0.25425106]
[1738699789698,0.01666667,98776.0,98771.0,0.40425106]
[1738699790054,0.01129755,98776.0,98775.0,0.30186]
[1738699790256,0.00022408,98793.0,98790.0,0.151837]
[1738699790455,0.00022408,98793.0,98790.0,0.25422206]
[1738699790658,0.00022408,98793.0,98790.0,0.40422206]
[1738699791485,0.00022408,98793.0,98790.0,0.41421221]
[1738699791695,0.151731,98859.0,98790.0,0.41421221]
[1738699791696,0.0812,98861.0,98851.0,0.151743]
[1738699791852,0.0456,98865.0,98862.0,0.151726]
[1738699792049,0.0812,98883.0,98862.0,0.40411106]
[1738699792329,0.0499,98897.0,98862.0,0.26218989]
[1738699792511,0.0147889,98900.0,98899.0,0.301669]
[1738699792717,0.08556334,98934.0,98933.0,0.151617]
[1738699792718,0.00470734,98934.0,98933.0,0.151617]
[1738699792925,0.151404,99073.0,98981.0,0.151544]
[1738699793126,0.151404,99073.0,98920.0,0.697649]
[1738699793127,0.0077388,99051.0,99036.0,0.151459]
[1738699793328,0.201813,99102.0,98982.0,4.16338]
[1738699793329,0.201813,99102.0,99043.0,0.151448]
[1738699793549,0.05027736,99229.0,99044.0,4.16338]
[1738699793795,0.05027736,99229.0,99099.0,0.01]
[1738699793796,0.040381,99172.0,99099.0,0.01]
[1738699793919,0.01579932,99205.0,99118.0,0.31523914]
[1738699793920,0.10238506,99123.0,99118.0,0.31523914]
[1738699794295,0.1,99214.0,99129.0,0.01]
[1738699794438,0.1,99214.0,99120.0,0.08078646]
[1738699794439,0.25195646,99256.0,99154.0,0.01]
[1738699794644,0.1008,99257.0,99230.0,0.28961894]
[1738699794877,0.01,99221.0,99160.0,0.35505465]
[1738699795078,0.01,99208.0,99175.0,0.08078646]
[1738699795262,0.01,99207.0,99145.0,0.01]
[1738699795463,0.01,99184.0,99183.0,0.01]
[1738699795703,0.0472,99191.0,99144.0,0.01]
[1738699795875,0.151289,99148.0,99146.0,0.10238506]
[1738699796119,0.15129,99147.0,99122.0,0.201769]
[1738699796283,0.01,99155.0,99123.0,0.01]
[1738699796548,0.01,99158.0,99124.0,0.01]
[1738699796665,1.5,99125.0,99103.0,0.01]
[1738699796868,1.51,99125.0,99121.0,0.181772]
[1738699797095,0.01,99147.0,99126.0,0.151321]
[1738699797294,0.01,99148.0,99127.0,0.10238506]
[1738699797503,0.01,99145.0,99128.0,0.10238506]
[1738699797684,0.01,99131.0,99130.0,0.151316]
[1738699797888,0.01,99143.0,99115.0,0.08078646]
[1738699798091,0.01,99136.0,99135.0,0.151308]
[1738699798290,0.01,99142.0,99112.0,0.20179]
[1738699798519,0.01,99138.0,99137.0,0.151305]
[1738699798853,0.00448108,99155.0,99122.0,0.08078646]
[1738699799044,0.01,99216.0,99122.0,0.08078646]
[1738699799045,0.1251,99231.0,99219.0,0.15118]
[1738699799241,0.1251,99231.0,99229.0,0.151165]
[1738699799495,0.01,99283.0,99241.0,0.01]
[1738699799681,0.0111159,99330.0,99271.0,0.00999992]
[1738699799912,0.0111159,99330.0,99305.0,0.00999992]
[1738699800163,0.01,99286.0,99216.0,0.00971513]
[1738699800365,0.01,99286.0,99179.0,0.0504268]
[1738699800366,0.00028487,99266.0,99201.0,0.08078646]
[1738699800478,0.00028487,99217.0,99201.0,0.08078646]
[1738699800681,0.00028487,99220.0,99180.0,0.08078646]
[1738699800894,0.00028487,99262.0,99170.0,0.35505465]
[1738699801099,0.00028487,99219.0,99218.0,0.01]
[1738699801295,0.01,99297.0,99218.0,0.256707]
[1738699801498,0.151057,99300.0,99230.0,0.35505465]
[1738699801699,0.01,99252.0,99205.0,0.023]
[1738699801959,0.35505465,99280.0,99200.0,0.00999913]
[1738699802159,0.08078646,99259.0,99211.0,0.10238506]
[1738699802393,0.151189,99213.0,99212.0,0.10238506]
[1738699802611,0.151189,99213.0,99155.0,0.00999913]
[1738699802612,0.151268,99162.0,99155.0,0.3]
[1738699802842,0.35505465,99200.0,99130.0,0.151316]
[1738699802966,1.5,99156.0,99155.0,0.151278]
[1738699803166,0.01,99196.0,99155.0,0.10238506]
[1738699803369,0.01,99265.0,99155.0,0.10238506]
[1738699803370,0.01,99258.0,99204.0,0.01]
[1738699803616,0.0774,99294.0,99156.0,0.08078646]
[1738699803617,0.1611,99272.0,99209.0,0.35505465]
[1738699803879,0.0774,99294.0,99192.0,0.03522707]
[1738699804055,0.0774,99294.0,99211.0,0.023]
[1738699804261,0.0111159,99330.0,99270.0,0.35505465]
[1738699804489,0.01,99351.0,99310.0,0.35505465]
[1738699804693,0.01,99351.0,99271.0,1.722219]
[1738699804694,0.0219167,99383.0,99360.0,0.150966]
[1738699804816,0.0219167,99383.0,99382.0,0.150932]
[1738699805020,0.0774,99438.0,99399.0,0.150906]
[1738699805253,0.0094222,99402.0,99370.0,0.35505465]
[1738699805592,0.0103365,99453.0,99401.0,0.08078646]
[1738699805743,0.01,99452.0,99390.0,0.35505465]
[1738699805922,0.0103365,99453.0,99390.0,0.35505465]
[1738699806139,0.08078646,99414.0,99370.0,0.35505465]
[1738699806327,0.08078646,99414.0,99304.0,0.0474]
[1738699806328,0.150954,99368.0,99350.0,0.35505465]
[1738699806530,0.150954,99368.0,99288.0,0.3]
[1738699806531,0.01,99348.0,99297.0,0.01]
[1738699806850,0.01,99294.0,99248.0,0.3]
[1738699807200,0.35505465,99290.0,99206.0,0.0081]
[1738699807422,0.151052,99303.0,99270.0,0.151102]
[1738699807631,0.01,99277.0,99228.0,0.01]
[1738699807832,0.01,99278.0,99215.0,0.01]
[1738699808007,0.01,99327.0,99266.0,0.01]
[1738699808219,0.01,99314.0,99240.0,0.35505465]
[1738699808508,0.01,99326.0,99240.0,0.35505465]
[1738699808715,0.01,99293.0,99231.0,0.201549]
[1738699808852,0.01,99303.0,99272.0,0.08078646]
[1738699809055,0.01,99325.0,99273.0,0.35717]
[1738699809256,0.01,99342.0,99281.0,0.15]
[1738699809459,0.01,99342.0,99268.0,0.10238506]
[1738699809793,0.01,99335.0,99331.0,0.15101]
[1738699809954,0.01,99335.0,99292.0,0.08078646]
[1738699809955,0.01,99349.0,99332.0,0.25238506]
[1738699810161,0.01,99329.0,99260.0,0.35505465]
[1738699810381,0.01,99294.0,99230.0,0.20155]
[1738699810581,0.01,99252.0,99228.0,0.151165]
[1738699810782,0.01,99252.0,99171.0,0.3378091]
[1738699810783,0.16,99239.0,99133.0,0.151311]
[1738699811029,0.16125,99173.0,99107.0,0.2018]
[1738699811249,0.16125,99173.0,99088.0,0.05050476]
[1738699811250,0.201625,99194.0,99162.0,0.32245062]
[1738699811436,0.201634,99190.0,99097.0,0.01]
[1738699811753,0.151256,99170.0,99145.0,0.151292]
[1738699811955,0.32245062,99190.0,99110.0,0.35505465]
[1738699812159,0.32245062,99200.0,99130.0,0.35505465]
[1738699812335,0.32250912,99200.0,99130.0,0.35505465]
[1738699812743,0.32250912,99200.0,99150.0,0.55676665]
[1738699812943,0.32250912,99200.0,99199.0,0.151211]
[1738699813122,0.32250912,99200.0,99153.0,0.15]
[1738699813323,5.85e-05,99192.0,99191.0,0.301223]
[1738699813595,5e-07,99192.0,99191.0,0.41360806]
[1738699813737,0.20146,99275.0,99255.0,0.151124]
[1738699813943,0.0819,99306.0,99230.0,0.35505465]
[1738699814155,0.0819,99306.0,99260.0,0.35505465]
[1738699814351,0.0768,99340.0,99260.0,0.35505465]
[1738699814957,0.0768,99340.0,99293.0,0.15]
[1738699815159,0.0768,99340.0,99281.0,0.201447]
[1738699815160,0.0768,99340.0,99290.0,0.20143]
[1738699815437,0.0768,99340.0,99290.0,0.15]
[1738699815657,0.0768,99340.0,99289.0,0.10238506]
[1738699815658,0.201236,99386.0,99325.0,0.301019]
[1738699815868,0.0768,99411.0,99325.0,0.151721]
[1738699816078,0.0768,99411.0,99361.0,0.10238506]
[1738699816079,0.201221,99394.0,99361.0,0.10238506]
[1738699816285,0.10238506,99410.0,99365.0,0.201276]
[1738699816491,0.30357506,99409.0,99366.0,0.10238506]
[1738699816693,0.10238506,99409.0,99366.0,0.10238506]
[1738699816899,0.201285,99362.0,99300.0,0.35505465]
[1738699817099,0.201285,99362.0,99264.0,0.01]
[1738699817100,0.10238506,99343.0,99284.0,0.32245062]
[1738699817307,0.10238506,99341.0,99284.0,0.32245062]
[1738699817480,0.10238506,99341.0,99230.0,0.0489]
[1738699817481,0.35505465,99300.0,99219.0,0.01]
[1738699817723,0.151178,99221.0,99204.0,0.151202]
[1738699817828,0.151144,99243.0,99150.0,0.35505465]
[1738699818033,0.201596,99208.0,99121.0,0.01]
[1738699818258,0.201596,99208.0,99111.0,0.00981663]
[1738699818259,0.151162,99231.0,99214.0,0.151188]
[1738699818479,0.201462,99274.0,99171.0,0.201671]
[1738699818680,0.201581,99216.0,99191.0,0.10238506]
[1738699818883,0.201592,99211.0,99191.0,0.10238506]
[1738699819127,0.201592,99211.0,99150.0,0.35505465]
[1738699819128,0.183,99214.0,99110.0,0.35505465]
[1738699819327,0.201616,99198.0,99131.0,7e-05]
[1738699819532,0.1834,99180.0,99131.0,7e-05]
[1738699819731,0.10238506,99173.0,99131.0,7e-05]
[1738699819931,0.201686,99164.0,99131.0,7e-05]
[1738699820079,0.10238506,99163.0,99132.0,0.10238506]
[1738699820287,0.01,99187.0,99131.0,7e-05]
[1738699820521,0.023,99171.0,99131.0,7e-05]
[1738699820728,0.35505465,99180.0,99131.0,7e-05]
[1738699820929,0.151313,99132.0,99131.0,7e-05]
[1738699821165,0.151403,99073.0,99041.0,0.201936]
[1738699821368,0.35505465,99100.0,98997.0,0.404118]
[1738699821584,0.01,99076.0,99003.0,0.15151]
[1738699821722,0.34484,99049.0,99004.0,0.151508]
[1738699821949,0.10238506,99049.0,99016.0,0.151489]
[1738699822145,0.0592,99075.0,98997.0,7e-05]
[1738699822146,0.10238506,99045.0,99041.0,0.08050882]
[1738699822348,0.10238506,99045.0,99024.0,0.08050882]
[1738699822349,0.10238506,99045.0,99044.0,0.151447]
[1738699822720,0.201923,99048.0,98992.0,0.202036]
[1738699822909,0.08050882,99087.0,98990.0,0.35505465]
[1738699823126,0.08050882,99050.0,98998.0,0.10238506]
[1738699823353,0.01,99116.0,99030.0,0.08050882]
[1738699823493,0.08050882,99077.0,99031.0,0.10238506]
[1738699823692,0.10238506,99095.0,99073.0,0.15]
[1738699823925,0.0492,99120.0,99032.0,0.10238506]
[1738699824137,0.0492,99120.0,99019.0,0.01]
[1738699824138,0.01,99155.0,99098.0,0.15]
[1738699824337,0.08050882,99134.0,99098.0,0.10238506]
[1738699824538,0.10238506,99132.0,99102.0,0.08050882]
[1738699824755,0.201678,99168.0,99115.0,0.15]
[1738699824910,0.151262,99166.0,99150.0,0.151285]
[1738699825335,0.0485,99205.0,99145.0,0.15]
[1738699825553,0.10238506,99179.0,99149.0,0.08050882]
[1738699825783,0.0485,99205.0,99162.0,0.08050882]
[1738699826009,0.0485,99205.0,99126.0,0.08050882]
[1738699826010,0.0485,99205.0,99163.0,0.10238506]
[1738699826218,0.08885547,99205.0,99131.0,0.01]
[1738699826423,1.5,99204.0,99168.0,0.151257]
[1738699826638,1.5,99204.0,99146.0,0.01]
[1738699826639,0.151239,99181.0,99153.0,0.10238506]
[1738699826843,0.08050882,99235.0,99159.0,0.01]
[1738699827049,0.08050882,99235.0,99126.0,0.08050882]
[1738699827050,0.08050882,99192.0,99102.0,0.08050882]
[1738699827251,0.08050882,99192.0,99120.0,0.01]
[1738699827454,0.201704,99156.0,99108.0,0.01]
[1738699827659,0.0468,99174.0,99108.0,0.01]
[1738699827860,0.201745,99135.0,99096.0,0.01]
[1738699828070,0.4268871,99120.0,99042.0,0.01]
[1738699828278,0.0468,99132.0,98979.0,0.040402]
[1738699828279,0.15,99082.0,98979.0,0.040402]
[1738699828482,0.023,99045.0,98980.0,0.01]
[1738699828686,0.4736871,99060.0,99000.0,0.01]
[1738699828687,0.023,99043.0,99000.0,0.01]
[1738699828885,0.0468,99060.0,99016.0,0.08050882]
[1738699829093,0.10238506,99059.0,99030.0,0.01]
[1738699829293,0.151433,99054.0,99031.0,0.25385106]
[1738699829515,0.08050882,99058.0,99037.0,0.01]
[1738699829702,0.08050882,99058.0,99013.0,0.201993]
[1738699829872,0.08050882,99070.0,99036.0,0.01]
[1738699830088,0.08050882,99070.0,98981.0,0.01052447]
[1738699830089,0.08050882,99086.0,99049.0,0.01]
[1738699830507,0.151397,99077.0,99049.0,0.16]
[1738699830665,0.08050882,99086.0,99061.0,0.15142]
[1738699830866,0.08050882,99086.0,98997.0,0.01007]
[1738699830867,0.08050882,99086.0,99063.0,0.01]
[1738699831215,0.08050882,99072.0,98999.0,0.0462]
[1738699831414,0.08050882,99072.0,99024.0,0.10238506]
[1738699831415,0.201877,99070.0,99024.0,0.10238506]
[1738699831624,0.023,99068.0,99000.0,0.01]
[1738699831757,0.023,99049.0,98981.0,0.01]
[1738699831957,0.10238506,99038.0,99003.0,0.151509]
[1738699832184,0.08050882,99036.0,98984.0,0.151538]
[1738699832540,0.10238506,99030.0,98978.0,0.01]
[1738699832656,1.5,99035.0,98985.0,0.08050882]
[1738699832865,1.5,99035.0,99002.0,0.01]
[1738699833071,1.5,99035.0,99012.0,0.08050882]
[1738699833276,0.08050882,99054.0,99026.0,0.10238506]
[1738699833466,0.08050882,99054.0,98983.0,0.023]
[1738699833467,0.08050882,99044.0,99025.0,0.151476]
[1738699833678,0.151438,99051.0,98969.0,0.48467382]
[1738699833679,0.151395,99079.0,99049.0,0.00022302]
[1738699833905,0.4268871,99120.0,99054.0,0.01]
[1738699834130,0.201777,99119.0,99074.0,0.15]
[1738699834333,0.0823,99138.0,99074.0,0.01]
[1738699834713,0.01,99161.0,99049.0,0.00022302]
[1738699834714,0.151249,99174.0,99115.0,0.01]
[1738699834850,0.151249,99174.0,99075.0,0.10238506]
[1738699834851,0.08050882,99136.0,99090.0,0.01]
[1738699835052,0.201724,99146.0,99104.0,0.01]
[1738699835319,0.201684,99165.0,99115.0,0.01]
[1738699835521,0.151248,99175.0,99141.0,0.01]
[1738699835677,0.08050882,99164.0,99134.0,0.10238506]
[1738699835858,0.10238506,99163.0,99106.0,0.201804]
[1738699836057,0.0947,99148.0,99049.0,0.00022302]
[1738699836242,0.0947,99148.0,99057.0,0.01]
[1738699836446,0.1834,99134.0,99050.0,0.201918]
[1738699836694,0.4268871,99120.0,99051.0,0.01]
[1738699836867,1.5,99081.0,99065.0,0.15]
[1738699837068,1.5,99081.0,99049.0,0.00022302]
[1738699837069,0.10389904,99080.0,99049.0,0.00022302]
[1738699837268,0.151384,99086.0,99053.0,0.01]
[1738699837464,0.08050882,99115.0,99077.0,0.01]
[1738699837687,1.5,99114.0,99093.0,0.01]
[1738699837896,0.08050882,99115.0,99093.0,0.01]
[1738699838094,0.08050882,99115.0,99097.0,0.15]
[1738699838447,1.50151339,99124.0,99098.0,0.10238506]
[1738699838646,1.50151339,99124.0,99099.0,0.15]
[1738699839011,0.10238506,99123.0,99063.0,0.01]
[1738699839188,0.023,99114.0,99082.0,0.151389]
[1738699839549,0.023,99129.0,99047.0,0.08050882]
[1738699839550,0.5036871,99180.0,99108.0,0.15]
[1738699839701,0.08050882,99125.0,99108.0,0.15]
[1738699840046,0.10389846,99124.0,99108.0,0.15]
[1738699840294,1.5,99139.0,99109.0,0.201798]
[1738699840474,0.10389822,99138.0,99108.0,0.01]
[1738699840677,0.10389822,99138.0,99048.0,0.15]
[1738699840678,0.08050882,99176.0,99111.0,0.15]
[1738699840879,1.58050882,99160.0,99129.0,0.01]
[1738699841020,0.151292,99146.0,99140.0,0.15]
[1738699841219,0.00151289,99149.0,99111.0,0.201793]
[1738699841495,0.201722,99146.0,99109.0,0.201797]
[1738699841692,1.5,99137.0,99117.0,0.201781]
[1738699841892,0.4268871,99180.0,99136.0,0.15]
[1738699842092,0.151245,99177.0,99153.0,0.15]
[1738699842332,0.151219,99194.0,99160.0,0.15127]
[1738699842540,1.5,99188.0,99177.0,0.01]
[1738699842746,0.4268871,99210.0,99154.0,0.10238506]
[1738699842949,0.151221,99193.0,99170.0,0.151254]
[1738699843152,1.65271933,99202.0,99180.0,0.151238]
[1738699843354,0.08050882,99199.0,99142.0,0.08050882]
[1738699843558,0.10389739,99201.0,99158.0,0.01]
[1738699843559,0.00151249,99198.0,99158.0,0.01]
[1738699843766,0.151241,99179.0,99138.0,0.151303]
[1738699843968,0.00151275,99178.0,99070.0,0.0486]
[1738699844150,0.04283999,99177.0,99123.0,0.01]
[1738699844377,0.04283999,99177.0,99070.0,0.0486]
[1738699844378,0.201663,99175.0,99145.0,0.01]
[1738699844551,0.08050882,99198.0,99175.0,0.15]
[1738699844708,0.08050882,99198.0,99186.0,0.15]
[1738699844911,0.00151217,99197.0,99180.0,0.15]
[1738699845095,0.00151222,99203.0,99180.0,0.15]
[1738699845315,0.149,99240.0,99133.0,0.01]
[1738699845316,0.0001065,99144.0,99133.0,0.01]
[1738699845513,0.0001065,99144.0,99134.0,0.08050882]
[1738699845771,0.0001065,99144.0,99083.0,0.08050882]
[1738699845948,1.5,99121.0,99105.0,0.01]
[1738699846148,0.0001065,99144.0,99113.0,0.01]
[1738699846493,0.08050882,99129.0,99114.0,0.10238506]
[1738699846702,0.201744,99136.0,99104.0,0.01]
[1738699846909,0.0001065,99144.0,99115.0,0.01]
[1738699847027,0.0001065,99144.0,99125.0,0.01]
[1738699847267,0.151337,99117.0,99060.0,0.201897]
[1738699847477,0.201806,99105.0,99078.0,0.01]
[1738699847678,0.08050882,99102.0,99030.0,0.00022365]
[1738699847980,0.151434,99053.0,99030.0,0.00022365]
[1738699848363,0.023,99073.0,99030.0,0.01022365]
[1738699848567,0.151434,99053.0,99030.0,0.00022365]
[1738699848717,0.151467,99031.0,99030.0,0.00022365]
[1738699848896,0.10238506,99031.0,99030.0,0.00022365]
[1738699849125,1.5,99050.0,99030.0,0.00022365]
[1738699849327,0.201982,99019.0,99004.0,0.00022428]
[1738699849531,1.5,99050.0,99004.0,0.00022428]
[1738699849732,0.151487,99019.0,99004.0,0.00022428]
[1738699849932,0.08050882,99046.0,99004.0,0.00022428]
[1738699849933,0.001515,99018.0,99004.0,0.00022428]
[1738699850320,0.174507,99005.0,99004.0,0.00022428]
[1738699850564,0.13964059,99005.0,98983.0,0.08803304]
[1738699850766,0.151574,98961.0,98919.0,0.202185]
[1738699850974,0.25547489,98961.0,98917.0,0.01053148]
[1738699851150,0.15162,98931.0,98917.0,0.01053148]
[1738699851354,0.151633,98923.0,98917.0,0.01053148]
[1738699851556,0.17464,98918.0,98917.0,0.01053148]
[1738699851762,0.17464,98918.0,98892.0,0.00522265]
[1738699851763,0.023,98917.0,98892.0,0.00522265]
[1738699851965,1.5,98910.0,98877.0,0.212269]
[1738699852114,0.10238506,98916.0,98909.0,0.03852536]
[1738699852320,0.08050882,98950.0,98928.0,0.01]
[1738699852504,0.09144396,98947.0,98929.0,0.03093356]
[1738699852700,0.202071,98975.0,98930.0,0.10238506]
[1738699852943,0.202071,98975.0,98909.0,0.0075918]
[1738699852944,0.03548837,98960.0,98909.0,0.0075918]
[1738699853156,0.4268871,98980.0,98945.0,0.151598]
[1738699853516,0.08050882,98976.0,98932.0,0.01]
[1738699853667,0.01,99036.0,98930.0,0.00022491]
[1738699853668,1.51159195,98975.0,98930.0,0.00022491]
[1738699853868,0.15162,98932.0,98930.0,0.00022491]
[1738699854133,0.15,98949.0,98900.0,0.0163522]
[1738699854345,0.151666,98901.0,98900.0,0.0163522]
[1738699854506,1.68704511,98901.0,98900.0,0.0163522]
[1738699854670,1.57412572,98901.0,98863.0,7e-05]
[1738699854866,0.52927216,98895.0,98863.0,7e-05]
[1738699855070,0.301711,98872.0,98833.0,0.08050882]
[1738699855268,0.4268871,98850.0,98834.0,0.03103894]
[1738699855607,1.50151781,98849.0,98809.0,0.08050882]
[1738699855807,0.151766,98836.0,98835.0,0.03008546]
[1738699855986,0.00151789,98847.0,98835.0,0.03008546]
[1738699856193,0.173,98836.0,98835.0,0.01105297]
[1738699856394,0.151808,98809.0,98776.0,0.0033691]
[1738699856596,1.65151805,98836.0,98776.0,0.0033691]
[1738699856597,0.151806,98810.0,98776.0,0.0033691]
[1738699856856,0.4268871,98786.0,98756.0,0.01053261]
[1738699857115,0.151887,98757.0,98756.0,0.01053261]
[1738699857393,1.5015193,98757.0,98730.0,7e-05]
[1738699857570,0.00151933,98756.0,98730.0,7e-05]
[1738699857749,0.08050882,98755.0,98730.0,7e-05]
[1738699857958,0.00151922,98754.0,98732.0,0.01]
[1738699858181,0.00151905,98775.0,98738.0,0.01]
[1738699858353,0.00151906,98774.0,98730.0,7e-05]
[1738699858572,0.00151906,98774.0,98738.0,0.01]
[1738699858733,0.00151876,98795.0,98785.0,0.01]
[1738699858933,0.0495,98831.0,98785.0,0.01]
[1738699858934,0.0015186,98809.0,98797.0,0.151826]
[1738699859202,0.00151829,98830.0,98798.0,0.15]
[1738699859430,0.0495,98865.0,98832.0,0.15]
[1738699859431,0.00151808,98855.0,98832.0,0.15]
[1738699859566,0.00151765,98864.0,98834.0,0.15]
[1738699859771,0.00151765,98864.0,98797.0,0.10238506]
[1738699859772,0.00151765,98880.0,98843.0,0.01]
[1738699860023,0.0455,98906.0,98859.0,0.15173]
[1738699860024,0.1834,98887.0,98859.0,0.15173]
[1738699860327,0.00151726,98886.0,98818.0,0.01]
[1738699860569,0.10238506,98885.0,98838.0,0.01]
[1738699860766,0.151696,98882.0,98838.0,0.01]
[1738699860969,0.00151733,98881.0,98840.0,0.01]
[1738699861169,0.11,98949.0,98805.0,0.023]
[1738699861170,0.00151712,98899.0,98851.0,0.01]
[1738699861389,0.202236,98894.0,98825.0,0.08050882]
[1738699861594,0.202236,98894.0,98805.0,0.30592582]
[1738699861595,0.15,98865.0,98805.0,0.08050882]
[1738699861799,0.023,98831.0,98805.0,0.08050882]